[Event "FIDE Open Sachove Univerzity QCC"]
[Site "Ceske Budejovice"]
[Date "2020.07.04"]
[Round "4.6"]
[White "Vavrousek, Petr"]
[Black "Petkov, Andon"]
[Result "0-1"]
[ECO "B00"]
[WhiteElo "1605"]
[BlackElo "1776"]
[Annotator "NA"]
[PlyCount "42"]
[EventDate "2020.07.01"]
[EventType "swiss"]
[EventCountry "CZE"]
[SourceTitle "playchess.com"]
[Source "ChessBase"]
[SourceQuality "1"]
[TimeControl "40/5400+30:1800+30"]

1. e4 {[%emt 0:00:00]} b6 {[%emt 0:00:05]} 2. Nc3 {[%emt 0:00:14]} Bb7 {[%emt 0:00:06]} 3. d4 {[%emt 0:00:52]} e6 {[%emt 0:00:12]} 4. Nf3 {[%emt 0:02:02]} Bb4 {[%emt 0:00:07]} 5. Bd3 {[%emt 0:02:26]} Nf6 {[%emt 0:00:23]} 6. Qe2 {[%emt 0:02:48]} d5 {[%emt 0:00:19]} 7. e5 {[%emt 0:01:48]} Ne4 {[%emt 0:00:11]} 8. Bxe4 {[%emt 0:01:43]} Bxc3+ {[%emt 0:03:06]} 9. bxc3 {[%emt 0:00:19]} dxe4 {[%emt 0:00:07]} 10. Ng5 {[%emt 0:02:43]} Qd5 {[%emt 0:00:56]} 11. Be3 {[%emt 0:03:18]} Ba6 {[%emt 0:00:59]} 12. Qg4 {[%emt 0:03:50]} Bb7 {[%emt 0:05:21]} 13. O-O {[%emt 0:00:59]} Nd7 {[%emt 0:02:28]} 14. Nh3 {[%emt 0:13:46]} O-O-O {[%emt 0:18:33]} 15. Nf4 {[%emt 0:02:40]} Qc4 {[%emt 0:00:56]} 16. Ne2 {[%emt 0:02:38]} Rhg8 {[%emt 0:04:52]} 17. Rfb1 {[%emt 0:03:00]} a5 {[%emt 0:00:33]} 18. Bd2 {[%emt 0:07:18]} f5 {[%emt 0:03:56]} 19. exf6 {[%emt 0:01:38]} Nxf6 {[%emt 0:00:25]} 20. Qf4 {[%emt 0:00:32]} Qxe2 {[%emt 0:00:34]} 21. a4 {[%emt 0:02:13]} Nd5 {[%emt 0:03:22]} 0-1

[Event "FIDE Open Sachove Univerzity QCC"]
[Site "Ceske Budejovice"]
[Date "2020.07.04"]
[Round "4.7"]
[White "Huemer, Gerald"]
[Black "Janouskova, Adela"]
[Result "0-1"]
[ECO "D00"]
[WhiteElo "1721"]
[BlackElo "1377"]
[Annotator "NA"]
[PlyCount "90"]
[EventDate "2020.07.01"]
[EventType "swiss"]
[EventCountry "CZE"]
[SourceTitle "playchess.com"]
[Source "ChessBase"]
[SourceQuality "1"]
[TimeControl "40/5400+30:1800+30"]

1. d4 {[%emt 0:00:00]} d5 {[%emt 0:00:00]} 2. Bf4 {[%emt 0:00:00]} Nf6 {[%emt 0:00:11]} 3. e3 {[%emt 0:00:11]} g6 {[%emt 0:00:15]} 4. h3 {[%emt 0:00:19]} Bg7 {[%emt 0:00:12]} 5. Nd2 {[%emt 0:00:07]} O-O {[%emt 0:00:36]} 6. Be2 {[%emt 0:00:19]} b6 {[%emt 0:02:01]} 7. Ngf3 {[%emt 0:00:11]} c5 {[%emt 0:00:50]} 8. c3 {[%emt 0:00:15]} Bb7 {[%emt 0:00:35]} 9. Ne5 {[%emt 0:00:41]} Nc6 {[%emt 0:01:54]} 10. Ndf3 {[%emt 0:00:27]} Nd7 {[%emt 0:03:58]} 11. O-O {[%emt 0:10:31]} Ndxe5 {[%emt 0:04:40]} 12. Nxe5 {[%emt 0:00:16]} f6 {[%emt 0:03:39]} 13. Nxc6 {[%emt 0:05:13]} Bxc6 {[%emt 0:00:15]} 14. Bh2 {[%emt 0:00:20]} e5 {[%emt 0:01:29]} 15. dxe5 {[%emt 0:01:22]} fxe5 {[%emt 0:00:12]} 16. f4 {[%emt 0:00:02]} e4 {[%emt 0:03:18]} 17. g4 {[%emt 0:02:34]} Qd7 {[%emt 0:01:35]} 18. Kg2 {[%emt 0:00:53]} Rad8 {[%emt 0:02:12]} 19. Qe1 {[%emt 0:01:48]} Bb7 {[%emt 0:00:44]} 20. Rd1 {[%emt 0:05:08]} Qe6 {[%emt 0:03:30]} 21. b3 {[%emt 0:01:07]} Kh8 {[%emt 0:00:27]} 22. Bg1 {[%emt 0:01:57]} Bc8 {[%emt 0:01:28]} 23. c4 {[%emt 0:00:26]} d4 {[%emt 0:02:21]} 24. exd4 {[%emt 0:05:33]} cxd4 {[%emt 0:03:27]} 25. f5 {[%emt 0:00:22]} gxf5 {[%emt 0:14:41]} 26. gxf5 {[%emt 0:00:13]} Qe7 {[%emt 0:01:21]} 27. Bg4 {[%emt 0:01:32]} Rg8 {[%emt 0:01:18]} 28. Rf4 {[%emt 0:03:15]} Be5 {[%emt 0:01:50]} 29. Rxe4 {[%emt 0:07:13]} Bb7 {[%emt 0:00:49]} 30. Kf3 {[%emt 0:00:58]} Bxe4+ {[%emt 0:05:56]} 31. Qxe4 {[%emt 0:00:17]} Qg7 {[%emt 0:00:56]} 32. Bf2 {[%emt 0:00:44]} h5 {[%emt 0:00:31]} 33. Rg1 {[%emt 0:01:18]} hxg4+ {[%emt 0:13:06]} 34. Rxg4 {[%emt 0:00:38]} Qc7 {[%emt 0:00:25]} 35. Rh4+ {[%emt 0:01:46]} Kg7 {[%emt 0:01:00]} 36. f6+ {[%emt 0:03:19]} Kf8 {[%emt 0:04:03]} 37. Rh7 {[%emt 0:02:35]} Qd6 {[%emt 0:01:33]} 38. f7 {[%emt 0:07:27]} Rh8 {[%emt 0:02:44]} 39. Bh4 {[%emt 0:01:52]} Rc8 {[%emt 0:07:46]} 40. Rxh8+ {[%emt 0:04:08]} Bxh8 {[%emt 0:00:32]} 41. Qh7 {[%emt 0:30:12]} Qc6+ {[%emt 0:31:30]} 42. Kf2 {[%emt 0:00:12]} Bf6 {[%emt 0:01:02]} 43. Qg8+ {[%emt 0:00:47]} Ke7 {[%emt 0:00:21]} 44. Bxf6+ {[%emt 0:05:37]} Qxf6+ {[%emt 0:00:36]} 45. Kg3 {[%emt 0:00:21]} Rf8 {[%emt 0:00:43]} 0-1

[Event "FIDE Open Sachove Univerzity QCC"]
[Site "Ceske Budejovice"]
[Date "2020.07.04"]
[Round "4.8"]
[White "Popov, Roman"]
[Black "Molnar, Ladislav"]
[Result "1-0"]
[ECO "A32"]
[WhiteElo "2353"]
[BlackElo "1712"]
[Annotator "RC"]
[PlyCount "49"]
[EventDate "2020.07.01"]
[EventType "swiss"]
[EventCountry "CZE"]
[SourceTitle "playchess.com"]
[Source "ChessBase"]
[SourceQuality "1"]
[TimeControl "40/5400+30:1800+30"]

1. d4 {[%emt 0:00:00]} Nf6 {[%emt 0:00:00]} 2. c4 {[%emt 0:00:00]} e6 {[%emt 0:00:00]} 3. g3 {[%emt 0:00:00]} c5 {[%emt 0:00:07]} 4. Nf3 {[%emt 0:02:45]} cxd4 {[%emt 0:01:24]} 5. Nxd4 {[%emt 0:00:19]} Bb4+ {[%emt 0:01:09]} 6. Bd2 {[%emt 0:01:46]} Bxd2+ {[%emt 0:00:41]} 7. Qxd2 {[%emt 0:04:30]} d5 {[%emt 0:01:33]} 8. Bg2 {[%emt 0:03:15]} O-O {[%emt 0:02:06]} 9. O-O {[%emt 0:01:25]} dxc4 {[%emt 0:05:06]} 10. Rd1 {[%emt 0:04:30]} Nbd7 {[%emt 0:05:48]} 11. Na3 {[%emt 0:04:37]} Nb6 {[%emt 0:06:58]} 12. Qc2 {[%emt 0:04:14]} Qc7 {[%emt 0:07:26]} 13. Rac1 {[%emt 0:01:59]} Rd8 {[%emt 0:03:59]} 14. Ndb5 {[%emt 0:04:40]} Rxd1+ {[%emt 0:03:15]} 15. Rxd1 {[%emt 0:00:34]} Qe7 {[%emt 0:04:11]} 16. Nxc4 {[%emt 0:02:37]} Ne8 {[%emt 0:15:52]} 17. Qd3 {[%emt 0:06:16]} Nxc4 {[%emt 0:05:18]} 18. Qxc4 {[%emt 0:00:36]} a6 {[%emt 0:02:08]} 19. Nc3 {[%emt 0:02:45]} Rb8 {[%emt 0:03:36]} 20. Qd4 {[%emt 0:02:28]} b5 {[%emt 0:02:48]} 21. Qd8 {[%emt 0:01:00]} Kf8 {[%emt 0:02:23]} 22. Bc6 {[%emt 0:01:20]} f6 {[%emt 0:00:59]} 23. Ne4 {[%emt 0:02:42]} Kf7 {[%emt 0:02:19]} 24. Bxe8+ {[%emt 0:00:24]} Kf8 {[%emt 0:02:13]} 25. Bxb5+ {[%emt 0:03:31]} 1-0

[Event "FIDE Open Sachove Univerzity QCC"]
[Site "Ceske Budejovice"]
[Date "2020.07.04"]
[Round "4.8"]
[White "Motejzik, Jaroslav"]
[Black "Stavova, Marketa"]
[Result "0-1"]
[ECO "D02"]
[WhiteElo "1396"]
[BlackElo "1219"]
[Annotator "NA"]
[PlyCount "75"]
[EventDate "2020.07.01"]
[EventType "swiss"]
[EventCountry "CZE"]
[SourceTitle "playchess.com"]
[Source "ChessBase"]
[SourceQuality "1"]
[TimeControl "40/5400+30:1800+30"]

1. d4 {[%emt 0:00:00]} d5 {[%emt 0:00:00]} 2. Nf3 {[%emt 0:00:00]} g6 {[%emt 0:00:15]} 3. c3 {[%emt 0:01:03]} Nf6 {[%emt 0:01:20]} 4. e3 {[%emt 0:02:34]} Bg7 {[%emt 0:01:30]} 5. Bd3 {[%emt 0:00:45]} O-O {[%emt 0:01:32]} 6. Nbd2 {[%emt 0:00:22]} b6 {[%emt 0:01:27]} 7. O-O {[%emt 0:00:14]} c5 {[%emt 0:01:10]} 8. Re1 {[%emt 0:01:40]} Bb7 {[%emt 0:01:59]} 9. e4 {[%emt 0:03:45]} dxe4 {[%emt 0:01:24]} 10. Nxe4 {[%emt 0:00:14]} Nc6 {[%emt 0:02:52]} 11. dxc5 {[%emt 0:05:33]} Nxe4 {[%emt 0:01:09]} 12. Bxe4 {[%emt 0:01:53]} bxc5 {[%emt 0:01:08]} 13. Be3 {[%emt 0:02:13]} Qa5 {[%emt 0:02:03]} 14. Qd7 {[%emt 0:03:54]} Rab8 {[%emt 0:01:33]} 15. Bxc6 {[%emt 0:02:10]} Rfd8 {[%emt 0:01:22]} 16. Qxe7 {[%emt 0:02:49]} Bxc6 {[%emt 0:00:19]} 17. Qxc5 {[%emt 0:00:24]} Qxc5 {[%emt 0:01:04]} 18. Bxc5 {[%emt 0:00:15]} Rxb2 {[%emt 0:01:01]} 19. Nd4 {[%emt 0:04:00]} Ba4 {[%emt 0:03:01]} 20. Bxa7 {[%emt 0:02:22]} Ra8 {[%emt 0:00:34]} 21. Re7 {[%emt 0:04:35]} Rc8 {[%emt 0:01:21]} 22. h3 {[%emt 0:05:34]} Bf8 {[%emt 0:01:29]} 23. Re2 {[%emt 0:02:20]} Rb7 {[%emt 0:00:39]} 24. Nc6 {[%emt 0:04:52]} Bxc6 {[%emt 0:01:24]} 25. Bd4 {[%emt 0:00:28]} Bd6 {[%emt 0:01:28]} 26. a4 {[%emt 0:09:47]} Rcb8 {[%emt 0:01:51]} 27. Ree1 {[%emt 0:04:51]} Ra8 {[%emt 0:00:59]} 28. a5 {[%emt 0:00:55]} Bb5 {[%emt 0:00:57]} 29. g3 {[%emt 0:02:57]} h5 {[%emt 0:07:44]} 30. Rec1 {[%emt 0:02:33]} Ba6 {[%emt 0:01:19]} 31. Re1 {[%emt 0:02:10]} Rbb8 {[%emt 0:05:46]} 32. Rec1 {[%emt 0:09:41]} Bc7 {[%emt 0:01:40]} 33. f4 {[%emt 0:05:29]} Bc8 {[%emt 0:03:08]} 34. h4 {[%emt 0:03:01]} Bxa5 {[%emt 0:01:34]} 35. Be5 {[%emt 0:04:29]} Rb7 {[%emt 0:01:44]} 36. Ra3 {[%emt 0:01:41]} Bb6+ {[%emt 0:01:18]} 37. Bd4 Ba5 38. Raa1 0-1

[Event "FIDE Open Sachove Univerzity QCC"]
[Site "Ceske Budejovice"]
[Date "2020.07.09"]
[Round "4.9"]
[White "Barta, David"]
[Black "Chval, Petr"]
[Result "0-1"]
[ECO "A81"]
[WhiteElo "1541"]
[BlackElo "1926"]
[Annotator "ChessBase"]
[PlyCount "98"]
[EventDate "2020.07.01"]
[EventType "swiss"]
[EventCountry "CZE"]
[TimeControl "40/5400+30:1800+30"]

1. d4 {[%emt 0:00:00]} d5 {[%emt 0:01:32]} 2. Nf3 {[%emt 0:00:00]} e6 {[%emt 0:00:29]} 3. g3 {[%emt 0:00:00]} f5 {[%emt 0:00:15]} 4. Bg2 {[%emt 0:00:40]} Nf6 {[%emt 0:00:05]} 5. Nbd2 {[%emt 0:00:46]} Be7 {[%emt 0:00:19]} 6. Ne5 {[%emt 0:01:00]} O-O {[%emt 0:00:15]} 7. O-O {[%emt 0:00:29]} Nbd7 {[%emt 0:00:30]} 8. Ndf3 {[%emt 0:00:56]} Ne4 {[%emt 0:00:27]} 9. c4 {[%emt 0:04:30]} c6 {[%emt 0:00:07]} 10. Qb3 {[%emt 0:05:16]} Ndf6 {[%emt 0:07:40]} 11. Ng5 {[%emt 0:08:13]} Qe8 {[%emt 0:12:08]} 12. f3 {[%emt 0:04:45]} Nxg5 {[%emt 0:01:29]} 13. Bxg5 {[%emt 0:00:15]} Qh5 {[%emt 0:04:07]} 14. Bd2 {[%emt 0:02:33]} Bd6 {[%emt 0:06:01]} 15. Bb4 {[%emt 0:05:05]} Bxb4 {[%emt 0:03:05]} 16. Qxb4 {[%emt 0:00:10]} Qg5 {[%emt 0:04:15]} 17. Rf2 {[%emt 0:06:39]} f4 {[%emt 0:09:52]} 18. Qd2 {[%emt 0:06:15]} Nd7 {[%emt 0:01:53]} 19. gxf4 {[%emt 0:23:04]} Qxf4 {[%emt 0:09:27]} 20. Qxf4 {[%emt 0:00:28]} Rxf4 {[%emt 0:00:06]} 21. e3 {[%emt 0:00:47]} Rh4 {[%emt 0:01:27]} 22. f4 {[%emt 0:06:58]} Nf6 {[%emt 0:04:02]} 23. c5 {[%emt 0:02:21]} Bd7 {[%emt 0:00:34]} 24. Raf1 {[%emt 0:04:41]} Be8 {[%emt 0:02:09]} 25. f5 {[%emt 0:00:59]} exf5 {[%emt 0:00:25]} 26. Rxf5 {[%emt 0:00:11]} Bg6 {[%emt 0:02:13]} 27. Nxg6 {[%emt 0:00:34]} hxg6 {[%emt 0:00:05]} 28. R5f4 {[%emt 0:03:32]} Rxf4 {[%emt 0:01:33]} 29. Rxf4 {[%emt 0:00:05]} Re8 {[%emt 0:05:27]} 30. Kf2 {[%emt 0:01:31]} g5 {[%emt 0:01:44]} 31. Rf5 {[%emt 0:03:59]} Ng4+ {[%emt 0:00:44]} 32. Kf3 {[%emt 0:00:35]} Nxe3 {[%emt 0:00:54]} 33. Rxg5 {[%emt 0:00:39]} Nc2 {[%emt 0:00:28]} 34. Rg4 {[%emt 0:00:54]} Ne1+ {[%emt 0:01:10]} 35. Kf4 {[%emt 0:01:24]} Re2 {[%emt 0:00:53]} 36. Bh3 {[%emt 0:01:39]} Rxh2 {[%emt 0:00:40]} 37. Rg3 {[%emt 0:02:41]} Rxb2 {[%emt 0:02:12]} 38. Ke5 {[%emt 0:00:54]} Rxa2 {[%emt 0:01:50]} 39. Be6+ {[%emt 0:02:05]} Kf8 {[%emt 0:01:22]} 40. Kd6 {[%emt 0:00:33]} Rf2 {[%emt 0:09:15]} 41. Rh3 {[%emt 0:31:25]} g5 {[%emt 0:32:37]} 42. Rh8+ {[%emt 0:00:00]} Kg7 {[%emt 0:00:00]} 43. Rg8+ {[%emt 0:00:00]} Kh6 {[%emt 0:00:00]} 44. Rh8+ {[%emt 0:00:00]} Kg6 {[%emt 0:00:00]} 45. Rg8+ {[%emt 0:00:00]} Kh7 {[%emt 0:00:00]} 46. Ke7 {[%emt 0:00:00]} Nc2 {[%emt 0:00:00]} 47. Bf7 {[%emt 0:00:00]} Nxd4 {[%emt 0:00:00]} 48. Rxg5 {[%emt 0:00:00]} Nf5+ {[%emt 0:00:00]} 49. Kf8 {[%emt 0:00:00]} Nh6 {[%emt 0:00:00]} 0-1

[Event "FIDE Open Sachove Univerzity QCC"]
[Site "Ceske Budejovice"]
[Date "2020.07.04"]
[Round "4.9"]
[White "Krautschneider, Daniel Jan"]
[Black "Postl, Frantisek"]
[Result "1-0"]
[ECO "B34"]
[WhiteElo "1374"]
[BlackElo "1188"]
[Annotator "NA"]
[PlyCount "49"]
[EventDate "2020.07.01"]
[EventType "swiss"]
[EventCountry "CZE"]
[SourceTitle "playchess.com"]
[Source "ChessBase"]
[SourceQuality "1"]
[TimeControl "40/5400+30:1800+30"]

1. e4 {[%emt 0:00:00]} c5 {[%emt 0:00:45]} 2. Nf3 {[%emt 0:00:00]} Nc6 {[%emt 0:00:51]} 3. d4 {[%emt 0:01:12]} cxd4 {[%emt 0:01:28]} 4. Nxd4 {[%emt 0:00:10]} Nf6 {[%emt 0:01:36]} 5. Nc3 {[%emt 0:00:10]} e5 {[%emt 0:01:21]} 6. Nxc6 {[%emt 0:01:19]} bxc6 {[%emt 0:01:06]} 7. Bc4 {[%emt 0:00:22]} Bb4 {[%emt 0:03:01]} 8. Bd2 {[%emt 0:01:56]} Bxc3 {[%emt 0:02:00]} 9. Bxc3 {[%emt 0:00:09]} Nxe4 {[%emt 0:01:36]} 10. Qf3 {[%emt 0:04:17]} d5 {[%emt 0:03:23]} 11. Bb3 {[%emt 0:11:20]} Qe7 {[%emt 0:02:35]} 12. O-O {[%emt 0:02:53]} Ba6 {[%emt 0:04:00]} 13. Rfe1 {[%emt 0:02:42]} O-O {[%emt 0:01:13]} 14. Rad1 {[%emt 0:02:15]} Rfe8 {[%emt 0:04:40]} 15. Qe3 {[%emt 0:06:59]} f5 {[%emt 0:05:12]} 16. Kh1 {[%emt 0:01:42]} Kh8 {[%emt 0:01:21]} 17. Qf3 {[%emt 0:01:03]} Rf8 {[%emt 0:05:59]} 18. Kg1 {[%emt 0:00:34]} Rf6 {[%emt 0:01:53]} 19. Ba4 {[%emt 0:15:47]} c5 {[%emt 0:02:31]} 20. Bb3 {[%emt 0:01:07]} Bb7 {[%emt 0:01:35]} 21. Bxd5 {[%emt 0:00:23]} Bxd5 {[%emt 0:00:18]} 22. Rxd5 {[%emt 0:00:11]} Ng5 {[%emt 0:03:13]} 23. Qe3 {[%emt 0:00:58]} Ne4 {[%emt 0:04:32]} 24. Rxe5 {[%emt 0:00:36]} Qf7 {[%emt 0:00:32]} 25. Rxe4 {[%emt 0:00:31]} 1-0

[Event "FIDE Open Sachove Univerzity QCC"]
[Site "Ceske Budejovice"]
[Date "2020.07.09"]
[Round "4.10"]
[White "Valtr, Filip"]
[Black "Kotleska, Roman"]
[Result "0-1"]
[ECO "B17"]
[WhiteElo "1784"]
[BlackElo "1521"]
[Annotator "NA RC"]
[PlyCount "78"]
[EventDate "2020.07.01"]
[EventType "swiss"]
[EventCountry "CZE"]
[TimeControl "40/5400+30:1800+30"]

1. e4 {[%emt 0:00:00]} c6 {[%emt 0:00:01]} 2. d4 {[%emt 0:00:00]} d5 {[%emt 0:00:09]} 3. Nc3 {[%emt 0:00:14]} dxe4 {[%emt 0:00:17]} 4. Nxe4 {[%emt 0:00:08]} Nd7 {[%emt 0:00:43]} 5. Nf3 {[%emt 0:00:26]} Ngf6 {[%emt 0:00:21]} 6. Nxf6+ {[%emt 0:01:09]} Nxf6 {[%emt 0:00:19]} 7. c3 {[%emt 0:02:25]} Bf5 {[%emt 0:03:21]} 8. Bc4 {[%emt 0:00:37]} e6 {[%emt 0:01:02]} 9. O-O {[%emt 0:02:56]} Bd6 {[%emt 0:01:16]} 10. Re1 {[%emt 0:01:57]} O-O {[%emt 0:04:04]} 11. h3 {[%emt 0:07:33]} Qc7 {[%emt 0:04:07]} 12. Bg5 {[%emt 0:04:14]} Nd5 {[%emt 0:03:25]} 13. Nh4 {[%emt 0:10:06]} Bg6 {[%emt 0:03:01]} 14. Qg4 {[%emt 0:08:57]} Nf4 {[%emt 0:07:56]} 15. Nxg6 {[%emt 0:12:45]} Nxg6 {[%emt 0:01:00]} 16. h4 {[%emt 0:05:57]} Ne7 {[%emt 0:15:43]} 17. h5 {[%emt 0:08:47]} Nf5 {[%emt 0:09:55]} 18. Bd3 {[%emt 0:06:58]} g6 {[%emt 0:04:41]} 19. hxg6 {[%emt 0:02:18]} hxg6 {[%emt 0:00:38]} 20. Bf6 {[%emt 0:05:24]} Ng7 {[%emt 0:04:34]} 21. Qh4 {[%emt 0:03:58]} Nh5 {[%emt 0:04:47]} 22. Re3 {[%emt 0:06:21]} Nxf6 {[%emt 0:01:03]} 23. Qxf6 {[%emt 0:02:09]} Be7 {[%emt 0:02:06]} 24. Qf3 {[%emt 0:00:07]} Kg7 {[%emt 0:01:13]} 25. Kf1 {[%emt 0:01:24]} Rh8 {[%emt 0:02:31]} 26. Ke2 {[%emt 0:00:09]} Rad8 {[%emt 0:03:10]} 27. g3 {[%emt 0:02:11]} c5 {[%emt 0:01:27]} 28. dxc5 {[%emt 0:00:45]} Bxc5 {[%emt 0:00:42]} 29. Re4 {[%emt 0:00:14]} Rh2 {[%emt 0:01:26]} 30. Rf1 {[%emt 0:01:22]} Qb6 {[%emt 0:00:36]} 31. b4 {[%emt 0:01:51]} Bxf2 {[%emt 0:00:37]} 32. Kd1 {[%emt 0:00:18]} f5 {[%emt 0:06:42]} 33. Re2 {[%emt 0:01:50]} Qd6 {[%emt 0:01:00]} 34. Rd2 {[%emt 0:00:42]} Bxg3 {[%emt 0:02:11]} 35. Rxh2 {[%emt 0:00:46]} Bxh2 {[%emt 0:00:27]} 36. Kc2 {[%emt 0:00:05]} Qd5 {[%emt 0:01:27]} 37. Qh3 {[%emt 0:00:35]} Qxa2+ {[%emt 0:00:35]} 38. Kc1 {[%emt 0:00:05]} Be5 {[%emt 0:02:57]} 39. Bb1 {[%emt 0:00:53]} Qd2# {[%emt 0:00:12]} 0-1

[Event "FIDE Open Sachove Univerzity QCC"]
[Site "Ceske Budejovice"]
[Date "2020.07.09"]
[Round "4.11"]
[White "Sobotka, Radim"]
[Black "Kral, Ladislav"]
[Result "1-0"]
[ECO "A22"]
[WhiteElo "1764"]
[BlackElo "1493"]
[Annotator "NA"]
[PlyCount "127"]
[EventDate "2020.07.01"]
[EventType "swiss"]
[EventCountry "CZE"]
[TimeControl "40/5400+30:1800+30"]

1. c4 {[%emt 0:00:00]} e5 {[%emt 0:00:00]} 2. Nc3 {[%emt 0:00:00]} Nf6 {[%emt 0:00:31]} 3. g3 {[%emt 0:01:07]} d5 {[%emt 0:02:49]} 4. cxd5 {[%emt 0:00:18]} Nxd5 {[%emt 0:00:43]} 5. Bg2 {[%emt 0:00:27]} Be6 {[%emt 0:05:13]} 6. d3 {[%emt 0:01:09]} c6 {[%emt 0:09:09]} 7. Nf3 {[%emt 0:00:56]} Nxc3 {[%emt 0:02:28]} 8. bxc3 {[%emt 0:00:28]} Nd7 {[%emt 0:01:42]} 9. O-O {[%emt 0:00:21]} Be7 {[%emt 0:01:35]} 10. Qc2 {[%emt 0:02:54]} Bf5 {[%emt 0:03:34]} 11. Rb1 {[%emt 0:03:45]} Rb8 {[%emt 0:01:26]} 12. e4 {[%emt 0:00:44]} Be6 {[%emt 0:01:52]} 13. Be3 {[%emt 0:02:37]} c5 {[%emt 0:01:47]} 14. Rfd1 {[%emt 0:03:15]} O-O {[%emt 0:01:40]} 15. d4 {[%emt 0:01:21]} cxd4 {[%emt 0:01:14]} 16. cxd4 {[%emt 0:00:23]} exd4 {[%emt 0:00:52]} 17. Bxd4 {[%emt 0:03:04]} b6 {[%emt 0:01:59]} 18. Qa4 {[%emt 0:07:02]} Qc7 {[%emt 0:07:48]} 19. Rbc1 {[%emt 0:01:47]} Qb7 {[%emt 0:00:30]} 20. Bb2 {[%emt 0:10:29]} Nc5 {[%emt 0:02:17]} 21. Qd4 {[%emt 0:02:23]} f6 {[%emt 0:08:57]} 22. e5 {[%emt 0:16:20]} Rfd8 {[%emt 0:00:50]} 23. Qc3 {[%emt 0:06:36]} Rxd1+ {[%emt 0:01:14]} 24. Rxd1 {[%emt 0:00:01]} Na4 {[%emt 0:01:00]} 25. Qc2 {[%emt 0:00:19]} Nxb2 {[%emt 0:00:50]} 26. Qxb2 {[%emt 0:00:02]} Bd5 {[%emt 0:04:39]} 27. Qb5 {[%emt 0:08:09]} Bc6 {[%emt 0:02:15]} 28. Qb3+ {[%emt 0:01:01]} Kf8 {[%emt 0:01:35]} 29. e6 {[%emt 0:01:34]} Rd8 {[%emt 0:02:22]} 30. Rxd8+ {[%emt 0:04:34]} Bxd8 {[%emt 0:00:24]} 31. Nh4 {[%emt 0:08:07]} Bxg2 {[%emt 0:02:12]} 32. Nxg2 {[%emt 0:00:02]} Be7 {[%emt 0:06:29]} 33. Qd3 {[%emt 0:04:28]} g6 {[%emt 0:01:21]} 34. Ne3 {[%emt 0:01:55]} Qc7 {[%emt 0:00:47]} 35. Qd5 {[%emt 0:03:15]} Qd6 {[%emt 0:04:39]} 36. g4 {[%emt 0:02:43]} Qxd5 {[%emt 0:08:37]} 37. Nxd5 {[%emt 0:00:02]} g5 {[%emt 0:02:03]} 38. Ne3 {[%emt 0:01:19]} b5 {[%emt 0:01:26]} 39. Kf1 {[%emt 0:01:14]} a5 {[%emt 0:01:32]} 40. Nf5 {[%emt 0:00:11]} b4 {[%emt 0:01:38]} 41. Ke2 {[%emt 0:31:49]} a4 {[%emt 0:31:43]} 42. Kd3 {[%emt 0:00:00]} b3 {[%emt 0:00:00]} 43. axb3 {[%emt 0:00:00]} axb3 {[%emt 0:00:00]} 44. Kc3 {[%emt 0:00:00]} b2 {[%emt 0:00:00]} 45. Kxb2 {[%emt 0:00:00]} Bc5 {[%emt 0:00:00]} 46. f3 {[%emt 0:00:00]} Bb4 {[%emt 0:00:00]} 47. Kb3 {[%emt 0:00:00]} Bc5 {[%emt 0:00:00]} 48. Kc4 {[%emt 0:00:00]} Ba3 {[%emt 0:00:00]} 49. Kd5 {[%emt 0:00:00]} Ke8 {[%emt 0:00:00]} 50. h4 {[%emt 0:00:00]} gxh4 {[%emt 0:00:00]} 51. Nxh4 {[%emt 0:00:00]} Bc1 {[%emt 0:00:00]} 52. Nf5 {[%emt 0:00:00]} Ba3 {[%emt 0:00:00]} 53. Ke4 {[%emt 0:00:00]} Bb4 {[%emt 0:00:00]} 54. Kd5 {[%emt 0:00:00]} Ba3 {[%emt 0:00:00]} 55. Kc6 {[%emt 0:00:00]} Bb4 {[%emt 0:00:00]} 56. Kb5 {[%emt 0:00:00]} Ba3 {[%emt 0:00:00]} 57. Kc4 {[%emt 0:00:00]} Kd8 {[%emt 0:00:00]} 58. Kd3 {[%emt 0:00:00]} Bb4 {[%emt 0:00:00]} 59. Ke4 {[%emt 0:00:00]} Bd2 {[%emt 0:00:00]} 60. f4 {[%emt 0:00:00]} Bb4 {[%emt 0:00:00]} 61. Ne3 {[%emt 0:00:00]} Bc5 {[%emt 0:00:00]} 62. Nd5 {[%emt 0:00:00]} Ba3 {[%emt 0:00:00]} 63. Nxf6 {[%emt 0:00:00]} Ke7 {[%emt 0:00:00]} 64. Kf5 {[%emt 0:00:00]} 1-0

[Event "FIDE Open Sachove Univerzity QCC"]
[Site "Ceske Budejovice"]
[Date "2020.07.04"]
[Round "4.12"]
[White "Berka, Lubos"]
[Black "Kamleiter, Noah"]
[Result "1/2-1/2"]
[ECO "B25"]
[WhiteElo "1718"]
[BlackElo "1463"]
[Annotator "NA"]
[PlyCount "56"]
[EventDate "2020.07.01"]
[EventType "swiss"]
[EventCountry "CZE"]
[SourceTitle "playchess.com"]
[Source "ChessBase"]
[SourceQuality "1"]
[TimeControl "40/5400+30:1800+30"]

1. e4 {[%emt 0:00:04]} c5 {[%emt 0:00:58]} 2. Nc3 {[%emt 0:00:23]} Nc6 {[%emt 0:00:07]} 3. g3 {[%emt 0:00:19]} g6 {[%emt 0:00:04]} 4. Bg2 {[%emt 0:00:05]} Bg7 {[%emt 0:00:04]} 5. d3 {[%emt 0:00:13]} d6 {[%emt 0:00:03]} 6. Nge2 {[%emt 0:00:07]} Rb8 {[%emt 0:00:42]} 7. a4 {[%emt 0:01:17]} a6 {[%emt 0:00:22]} 8. O-O {[%emt 0:00:08]} b5 {[%emt 0:00:31]} 9. f4 {[%emt 0:03:33]} b4 {[%emt 0:03:45]} 10. Nd5 {[%emt 0:01:50]} e6 {[%emt 0:00:16]} 11. Ne3 {[%emt 0:00:17]} Nge7 {[%emt 0:02:09]} 12. g4 {[%emt 0:06:41]} f5 {[%emt 0:01:46]} 13. exf5 {[%emt 0:06:26]} exf5 {[%emt 0:00:13]} 14. g5 {[%emt 0:01:10]} Bb7 {[%emt 0:07:01]} 15. Nd5 {[%emt 0:07:09]} Nxd5 {[%emt 0:04:51]} 16. Bxd5 {[%emt 0:00:17]} Nd4 {[%emt 0:00:26]} 17. Bxb7 {[%emt 0:00:55]} Rxb7 {[%emt 0:00:07]} 18. Be3 {[%emt 0:09:28]} Nxe2+ {[%emt 0:02:03]} 19. Qxe2 {[%emt 0:01:32]} Re7 {[%emt 0:02:21]} 20. Rab1 {[%emt 0:00:49]} O-O {[%emt 0:01:54]} 21. Qf3 {[%emt 0:04:04]} Rfe8 {[%emt 0:03:19]} 22. Bf2 {[%emt 0:01:31]} Qd7 {[%emt 0:05:57]} 23. Rfe1 {[%emt 0:08:01]} Rxe1+ {[%emt 0:16:07]} 24. Bxe1 {[%emt 0:01:17]} Bd4+ {[%emt 0:04:05]} 25. Bf2 {[%emt 0:14:11]} Bxf2+ {[%emt 0:01:17]} 26. Kxf2 {[%emt 0:00:30]} Qe6 {[%emt 0:12:32]} 27. b3 {[%emt 0:05:46]} d5 {[%emt 0:03:01]} 28. Rd1 {[%emt 0:02:28]} d4 {[%emt 0:02:56]} 1/2-1/2